[Event "Kupreichik Memorial Open 2018"]
[Site "Minsk"]
[Date "2018.06.23"]
[Round "11"]
[White "Naumovich, Yaroslav"]
[Black "Masjuk, Vladimir"]
[Result "1-0"]
[ECO "A05"]
[WhiteElo "1959"]
[BlackElo "1829"]
[Annotator "NA"]
[PlyCount "111"]
[EventDate "2018.06.21"]
[EventCountry "BLR"]
[SourceTitle "playchess.com"]
[Source "ChessBase"]
[SourceQuality "1"]
[TimeControl "900+10"]

1. Nf3 {[%emt 0:00:00]} Nf6 {[%emt 0:00:04]} 2. d4 {[%emt 0:00:00]} d6 {[%emt 0:00:03]} 3. g3 {[%emt 0:00:00]} Bf5 {[%emt 0:00:04]} 4. Bg2 {[%emt 0:00:00]} c6 {[%emt 0:00:02]} 5. O-O {[%emt 0:00:00]} Nbd7 {[%emt 0:00:02]} 6. c4 {[%emt 0:00:00]} e6 {[%emt 0:00:04]} 7. Nc3 {[%emt 0:00:01]} Be7 {[%emt 0:00:02]} 8. Re1 {[%emt 0:00:02]} O-O {[%emt 0:00:04]} 9. e4 {[%emt 0:00:01]} Bg6 {[%emt 0:00:04]} 10. b3 {[%emt 0:00:03]} Bh5 {[%emt 0:00:25]} 11. Bb2 {[%emt 0:00:07]} e5 {[%emt 0:00:05]} 12. d5 {[%emt 0:00:15]} cxd5 {[%emt 0:00:16]} 13. Nxd5 {[%emt 0:00:02]} Nxd5 {[%emt 0:00:06]} 14. Qxd5 {[%emt 0:00:02]} Qc7 {[%emt 0:00:27]} 15. Rad1 {[%emt 0:00:01]} Nf6 {[%emt 0:00:05]} 16. Qd3 {[%emt 0:00:09]} Rad8 {[%emt 0:00:33]} 17. h3 {[%emt 0:00:04]} a6 {[%emt 0:00:12]} 18. g4 {[%emt 0:00:34]} Bg6 {[%emt 0:00:03]} 19. Nh4 {[%emt 0:00:02]} Bxe4 {[%emt 0:01:14]} 20. Bxe4 {[%emt 0:00:23]} Nxe4 {[%emt 0:00:02]} 21. Nf5 {[%emt 0:00:10]} Nc5 {[%emt 0:00:51]} 22. Qe3 {[%emt 0:00:18]} Ne6 {[%emt 0:00:11]} 23. Rd5 {[%emt 0:00:39]} Bg5 {[%emt 0:00:54]} 24. Qg3 {[%emt 0:00:34]} Nf4 {[%emt 0:02:16]} 25. Rdd1 {[%emt 0:00:57]} Rfe8 {[%emt 0:00:32]} 26. h4 {[%emt 0:00:17]} Be7 {[%emt 0:00:06]} 27. Bc1 {[%emt 0:00:34]} Ne6 {[%emt 0:00:27]} 28. Rd5 {[%emt 0:02:06]} Bf8 {[%emt 0:00:11]} 29. h5 {[%emt 0:02:52]} Nf4 {[%emt 0:00:41]} 30. Bxf4 {[%emt 0:01:55]} exf4 {[%emt 0:00:03]} 31. Qc3 {[%emt 0:00:01]} g6 {[%emt 0:00:38]} 32. Nh4 {[%emt 0:03:10]} Bg7 {[%emt 0:00:24]} 33. Rxe8+ {[%emt 0:00:08]} Rxe8 {[%emt 0:00:02]} 34. Qd2 {[%emt 0:00:00]} Qe7 {[%emt 0:00:12]} 35. Nf3 {[%emt 0:00:48]} Be5 {[%emt 0:00:47]} 36. c5 {[%emt 0:00:24]} Qe6 {[%emt 0:00:16]} 37. Nxe5 {[%emt 0:01:48]} dxe5 {[%emt 0:00:05]} 38. f3 {[%emt 0:00:43]} e4 {[%emt 0:00:09]} 39. Rd6 {[%emt 0:00:04]} Qe5 {[%emt 0:00:02]} 40. Qd4 {[%emt 0:00:02]} Qxd4+ {[%emt 0:01:42]} 41. Rxd4 {[%emt 0:00:00]} e3 {[%emt 0:00:04]} 42. Kf1 {[%emt 0:00:01]} g5 {[%emt 0:00:05]} 43. Rd7 {[%emt 0:00:24]} Rc8 {[%emt 0:00:47]} 44. b4 {[%emt 0:00:01]} a5 {[%emt 0:00:02]} 45. a3 {[%emt 0:00:01]} axb4 {[%emt 0:00:02]} 46. axb4 {[%emt 0:00:01]} Rb8 {[%emt 0:00:07]} 47. h6 {[%emt 0:00:06]} Kf8 {[%emt 0:00:03]} 48. b5 {[%emt 0:00:03]} Ke8 {[%emt 0:00:02]} 49. Rc7 {[%emt 0:00:03]} Kf8 {[%emt 0:00:21]} 50. b6 {[%emt 0:00:12]} Ke8 {[%emt 0:00:07]} 51. Ke1 {[%emt 0:00:04]} Kf8 {[%emt 0:00:05]} 52. c6 {[%emt 0:00:06]} Ra8 {[%emt 0:00:49]} 53. cxb7 {[%emt 0:00:02]} Ra1+ {[%emt 0:00:02]} 54. Ke2 {[%emt 0:00:01]} Ra2+ {[%emt 0:00:01]} 55. Kd3 {[%emt 0:00:05]} Ra3+ {[%emt 0:00:01]} 56. Kc4 {[%emt 0:00:11]} 1-0

[Event "Kupreichik Memorial Open 2018"]
[Site "Minsk"]
[Date "2018.06.23"]
[Round "11"]
[White "Artsiomau, Stanislau"]
[Black "Katashuk, Uladzislau"]
[Result "1-0"]
[ECO "B20"]
[WhiteElo "1954"]
[BlackElo "2149"]
[Annotator "NA"]
[PlyCount "105"]
[EventDate "2018.06.21"]
[EventCountry "BLR"]
[SourceTitle "playchess.com"]
[Source "ChessBase"]
[SourceQuality "1"]
[TimeControl "900+10"]

1. e4 {[%emt 0:00:00]} c5 {[%emt 0:00:19]} 2. g3 {[%emt 0:00:00]} Nc6 {[%emt 0:00:02]} 3. Bg2 {[%emt 0:00:00]} e5 {[%emt 0:00:03]} 4. Nc3 {[%emt 0:00:15]} d6 {[%emt 0:00:01]} 5. d3 {[%emt 0:00:01]} g6 {[%emt 0:00:02]} 6. Nge2 {[%emt 0:00:12]} Bg7 {[%emt 0:00:02]} 7. O-O {[%emt 0:00:04]} Nge7 {[%emt 0:00:01]} 8. Be3 {[%emt 0:00:24]} O-O {[%emt 0:00:04]} 9. Qd2 {[%emt 0:00:06]} Be6 {[%emt 0:00:12]} 10. Nd5 {[%emt 0:00:40]} Bxd5 {[%emt 0:00:31]} 11. exd5 {[%emt 0:00:01]} Nb4 {[%emt 0:00:01]} 12. Nc3 {[%emt 0:01:03]} Nf5 {[%emt 0:00:07]} 13. a3 {[%emt 0:00:03]} Na6 {[%emt 0:00:02]} 14. Rab1 {[%emt 0:01:05]} Rc8 {[%emt 0:01:00]} 15. Bh3 {[%emt 0:00:14]} Nxe3 {[%emt 0:01:38]} 16. fxe3 {[%emt 0:01:37]} Rc7 {[%emt 0:00:32]} 17. e4 {[%emt 0:00:30]} Re7 {[%emt 0:00:17]} 18. Rf2 {[%emt 0:01:00]} Nc7 {[%emt 0:00:07]} 19. Ne2 {[%emt 0:00:17]} h5 {[%emt 0:00:10]} 20. Rbf1 {[%emt 0:02:10]} Kh7 {[%emt 0:00:05]} 21. Qd1 {[%emt 0:00:20]} Bh6 {[%emt 0:00:03]} 22. Kg2 {[%emt 0:00:25]} Ne8 {[%emt 0:00:33]} 23. Ng1 {[%emt 0:00:32]} Ng7 {[%emt 0:00:06]} 24. Qe2 {[%emt 0:00:08]} b5 {[%emt 0:01:29]} 25. Rf3 {[%emt 0:00:31]} Qa8 {[%emt 0:00:23]} 26. c4 {[%emt 0:00:11]} Qb7 {[%emt 0:01:04]} 27. R1f2 {[%emt 0:00:05]} h4 {[%emt 0:02:00]} 28. Qf1 {[%emt 0:00:28]} bxc4 {[%emt 0:00:11]} 29. dxc4 {[%emt 0:00:02]} Bg5 {[%emt 0:00:49]} 30. Bg4 {[%emt 0:01:02]} hxg3 {[%emt 0:03:42]} 31. hxg3 {[%emt 0:00:08]} Kg8 {[%emt 0:00:07]} 32. Kh1 {[%emt 0:01:00]} f5 {[%emt 0:00:21]} 33. Rh2 {[%emt 0:01:05]} Nh5 {[%emt 0:04:19]} 34. Bxh5 {[%emt 0:01:33]} gxh5 {[%emt 0:00:02]} 35. Rxf5 {[%emt 0:00:13]} Rxf5 {[%emt 0:00:16]} 36. Qxf5 {[%emt 0:00:01]} Rg7 {[%emt 0:00:10]} 37. Nf3 {[%emt 0:00:37]} Qf7 {[%emt 0:00:11]} 38. Qxf7+ {[%emt 0:01:44]} Kxf7 {[%emt 0:00:01]} 39. Nxg5+ {[%emt 0:00:37]} Rxg5 {[%emt 0:00:01]} 40. Kg2 {[%emt 0:00:01]} a5 {[%emt 0:00:22]} 41. Kf3 {[%emt 0:00:12]} Kg7 {[%emt 0:00:13]} 42. b4 {[%emt 0:00:20]} axb4 {[%emt 0:00:01]} 43. axb4 {[%emt 0:00:01]} cxb4 {[%emt 0:00:10]} 44. Rb2 {[%emt 0:00:00]} Rg6 {[%emt 0:00:05]} 45. Rxb4 {[%emt 0:00:04]} Rf6+ {[%emt 0:00:01]} 46. Kg2 {[%emt 0:00:16]} h4 {[%emt 0:00:04]} 47. Rb7+ {[%emt 0:00:54]} Kg6 {[%emt 0:00:02]} 48. Rb3 {[%emt 0:00:04]} Kg5 {[%emt 0:00:10]} 49. gxh4+ {[%emt 0:00:16]} Kxh4 {[%emt 0:00:02]} 50. Rf3 {[%emt 0:00:24]} Rg6+ {[%emt 0:00:12]} 51. Kh2 {[%emt 0:00:03]} Rg4 {[%emt 0:00:54]} 52. Rh3+ {[%emt 0:00:01]} Kg5 {[%emt 0:00:01]} 53. Rg3 {[%emt 0:00:00]} 1-0

[Event "Kupreichik Memorial Open 2018"]
[Site "Minsk"]
[Date "2018.06.23"]
[Round "11"]
[White "Laptii, Nazar"]
[Black "Sihite, Chelsie Monica Igne"]
[Result "0-1"]
[ECO "A06"]
[WhiteElo "1925"]
[BlackElo "2236"]
[Annotator "NA"]
[PlyCount "58"]
[EventDate "2018.06.21"]
[EventCountry "BLR"]
[SourceTitle "playchess.com"]
[Source "ChessBase"]
[SourceQuality "1"]
[TimeControl "900+10"]

1. Nf3 {[%emt 0:00:00]} d5 {[%emt 0:00:01]} 2. g3 {[%emt 0:00:00]} c6 {[%emt 0:00:01]} 3. Bg2 {[%emt 0:00:00]} e6 {[%emt 0:00:02]} 4. O-O {[%emt 0:00:00]} Be7 {[%emt 0:00:09]} 5. d3 {[%emt 0:00:03]} Nd7 {[%emt 0:00:31]} 6. e4 {[%emt 0:00:04]} dxe4 {[%emt 0:00:18]} 7. dxe4 {[%emt 0:00:05]} e5 {[%emt 0:00:01]} 8. b3 {[%emt 0:00:12]} Qc7 {[%emt 0:00:08]} 9. Nbd2 {[%emt 0:00:09]} b6 {[%emt 0:00:06]} 10. Bb2 {[%emt 0:00:04]} Ba6 {[%emt 0:00:04]} 11. Re1 {[%emt 0:00:03]} Rd8 {[%emt 0:00:05]} 12. Bf1 {[%emt 0:00:03]} Bxf1 {[%emt 0:00:24]} 13. Rxf1 {[%emt 0:00:02]} Nh6 {[%emt 0:00:04]} 14. Qe2 {[%emt 0:00:10]} O-O {[%emt 0:00:04]} 15. Nc4 {[%emt 0:00:01]} f6 {[%emt 0:00:22]} 16. Nh4 {[%emt 0:00:18]} Nc5 {[%emt 0:00:08]} 17. Ne3 {[%emt 0:00:06]} g6 {[%emt 0:00:44]} 18. f4 {[%emt 0:00:31]} b5 {[%emt 0:00:14]} 19. Neg2 {[%emt 0:04:34]} Qc8 {[%emt 0:04:52]} 20. fxe5 {[%emt 0:03:00]} fxe5 {[%emt 0:00:01]} 21. Nf3 {[%emt 0:04:37]} Qh3 {[%emt 0:00:02]} 22. Nxe5 {[%emt 0:00:58]} Ne6 {[%emt 0:00:00]} 23. Nd3 {[%emt 0:01:39]} Bg5 {[%emt 0:02:43]} 24. Rxf8+ {[%emt 0:01:47]} Rxf8 {[%emt 0:00:04]} 25. Nf2 {[%emt 0:00:05]} Rxf2 {[%emt 0:00:05]} 26. Kxf2 {[%emt 0:00:22]} Ng4+ {[%emt 0:00:19]} 27. Ke1 {[%emt 0:00:12]} h5 {[%emt 0:01:27]} 28. Rd1 {[%emt 0:00:17]} Qxh2 {[%emt 0:00:08]} 29. Rd6 {[%emt 0:00:09]} Qxg3+ {[%emt 0:00:02]} 0-1

[Event "Kupreichik Memorial Open 2018"]
[Site "Minsk"]
[Date "2018.06.23"]
[Round "11"]
[White "Papunidi, Matvey"]
[Black "Sarbay, Aleksandr"]
[Result "1-0"]
[ECO "B32"]
[WhiteElo "1913"]
[BlackElo "2045"]
[Annotator "NA"]
[PlyCount "180"]
[EventDate "2018.06.21"]
[EventCountry "BLR"]
[SourceTitle "playchess.com"]
[Source "ChessBase"]
[SourceQuality "1"]
[TimeControl "900+10"]

1. e4 {[%emt 0:00:00]} c5 {[%emt 0:00:00]} 2. Nf3 {[%emt 0:00:00]} Nc6 {[%emt 0:00:01]} 3. d4 {[%emt 0:00:00]} cxd4 {[%emt 0:00:15]} 4. Nxd4 {[%emt 0:00:00]} g6 {[%emt 0:00:02]} 5. Be3 {[%emt 0:00:09]} Nf6 {[%emt 0:00:14]} 6. Nc3 {[%emt 0:00:05]} Bg7 {[%emt 0:00:01]} 7. Nxc6 {[%emt 0:00:03]} bxc6 {[%emt 0:00:04]} 8. e5 {[%emt 0:00:01]} Ng8 {[%emt 0:00:11]} 9. Bd4 {[%emt 0:00:02]} Qc7 {[%emt 0:00:22]} 10. e6 {[%emt 0:01:12]} Nf6 {[%emt 0:01:54]} 11. exd7+ {[%emt 0:00:44]} Bxd7 {[%emt 0:00:13]} 12. Bc4 {[%emt 0:04:56]} O-O {[%emt 0:00:43]} 13. Qe2 {[%emt 0:00:32]} c5 {[%emt 0:03:40]} 14. Be5 {[%emt 0:00:51]} Qb7 {[%emt 0:00:14]} 15. O-O {[%emt 0:00:59]} Bc6 {[%emt 0:01:04]} 16. f3 {[%emt 0:00:05]} Rad8 {[%emt 0:01:36]} 17. Rad1 {[%emt 0:01:25]} Rxd1 {[%emt 0:00:30]} 18. Rxd1 {[%emt 0:00:13]} Qxb2 {[%emt 0:00:22]} 19. Nb5 {[%emt 0:03:14]} Qb4 {[%emt 0:00:05]} 20. Nxa7 {[%emt 0:00:12]} Bb7 {[%emt 0:03:14]} 21. Nb5 {[%emt 0:00:43]} Qa5 {[%emt 0:00:28]} 22. Bc3 {[%emt 0:00:32]} Qa8 {[%emt 0:00:19]} 23. Qxe7 {[%emt 0:00:27]} Bxf3 {[%emt 0:01:10]} 24. gxf3 Qxf3 {[%emt 0:00:01]} 25. Qe2 {[%emt 0:00:53]} Qf4 {[%emt 0:00:45]} 26. Rf1 {[%emt 0:00:32]} Qg5+ {[%emt 0:00:09]} 27. Qg2 {[%emt 0:00:15]} Qh4 {[%emt 0:00:08]} 28. Be2 {[%emt 0:00:36]} Re8 {[%emt 0:00:24]} 29. Bf3 {[%emt 0:00:40]} Qc4 {[%emt 0:00:11]} 30. Bc6 {[%emt 0:00:21]} Re2 {[%emt 0:00:13]} 31. Qf3 {[%emt 0:00:05]} Qg4+ {[%emt 0:00:18]} 32. Qxg4 {[%emt 0:00:06]} Nxg4 {[%emt 0:00:01]} 33. Bxg7 {[%emt 0:00:07]} Kxg7 {[%emt 0:00:00]} 34. Bf3 {[%emt 0:00:03]} Rxc2 {[%emt 0:00:07]} 35. Bxg4 {[%emt 0:00:02]} Rxa2 {[%emt 0:00:00]} 36. Rc1 {[%emt 0:00:06]} h5 {[%emt 0:00:16]} 37. Bf3 {[%emt 0:00:08]} Ra5 {[%emt 0:00:46]} 38. Rxc5 {[%emt 0:00:03]} Ra1+ {[%emt 0:00:10]} 39. Kg2 {[%emt 0:00:04]} Ra2+ {[%emt 0:00:02]} 40. Kg3 {[%emt 0:00:02]} h4+ {[%emt 0:00:02]} 41. Kxh4 {[%emt 0:00:48]} Rxh2+ {[%emt 0:00:01]} 42. Kg3 {[%emt 0:00:04]} Rd2 {[%emt 0:00:10]} 43. Rc7 {[%emt 0:00:13]} Kf6 {[%emt 0:00:07]} 44. Nc3 {[%emt 0:00:01]} Rd3 {[%emt 0:00:36]} 45. Ne4+ {[%emt 0:00:08]} Kg7 {[%emt 0:00:11]} 46. Ng5 {[%emt 0:00:05]} Kf6 {[%emt 0:00:13]} 47. Nxf7 {[%emt 0:00:13]} Re3 {[%emt 0:00:03]} 48. Nh6 {[%emt 0:00:08]} Ra3 {[%emt 0:00:26]} 49. Ng4+ {[%emt 0:00:08]} Ke6 {[%emt 0:00:10]} 50. Rg7 {[%emt 0:00:04]} Kf5 {[%emt 0:00:07]} 51. Re7 {[%emt 0:00:19]} g5 {[%emt 0:00:13]} 52. Re5+ {[%emt 0:00:09]} Kg6 {[%emt 0:00:02]} 53. Re6+ {[%emt 0:00:13]} Kf7 {[%emt 0:00:06]} 54. Rb6 {[%emt 0:00:04]} Rc3 {[%emt 0:00:17]} 55. Ne5+ {[%emt 0:00:05]} Ke7 {[%emt 0:00:11]} 56. Rg6 {[%emt 0:00:37]} Rc5 {[%emt 0:00:54]} 57. Ng4 {[%emt 0:00:25]} Ra5 {[%emt 0:00:08]} 58. Ne3 {[%emt 0:00:09]} Kf7 {[%emt 0:00:11]} 59. Rb6 {[%emt 0:00:12]} Ra3 {[%emt 0:00:12]} 60. Nf5 {[%emt 0:00:04]} Ra4 {[%emt 0:00:11]} 61. Nd6+ {[%emt 0:00:06]} Ke7 {[%emt 0:00:14]} 62. Ne4 {[%emt 0:00:05]} Ra5 {[%emt 0:00:08]} 63. Kg4 {[%emt 0:00:04]} Kd7 {[%emt 0:00:13]} 64. Nxg5 {[%emt 0:00:06]} Kc7 {[%emt 0:00:01]} 65. Rc6+ {[%emt 0:00:02]} Kd7 {[%emt 0:00:02]} 66. Rh6 {[%emt 0:00:08]} Ra4+ {[%emt 0:00:01]} 67. Be4 {[%emt 0:00:10]} Rb4 {[%emt 0:00:05]} 68. Kf4 {[%emt 0:00:05]} Ra4 {[%emt 0:00:08]} 69. Ke5 {[%emt 0:00:07]} Ra5+ {[%emt 0:00:00]} 70. Bd5 {[%emt 0:00:01]} Kc7 {[%emt 0:00:15]} 71. Ne4 {[%emt 0:00:15]} Ra1 {[%emt 0:00:13]} 72. Rc6+ {[%emt 0:00:06]} Kd7 {[%emt 0:00:03]} 73. Nf6+ {[%emt 0:00:18]} Ke7 {[%emt 0:00:13]} 74. Rc7+ {[%emt 0:00:05]} Kd8 {[%emt 0:00:01]} 75. Kd6 {[%emt 0:00:11]} Ra6+ {[%emt 0:00:10]} 76. Rc6 {[%emt 0:00:17]} Rxc6+ {[%emt 0:00:18]} 77. Bxc6 {[%emt 0:00:02]} Kc8 {[%emt 0:00:12]} 78. Nd7 {[%emt 0:00:55]} Kd8 {[%emt 0:00:05]} 79. Nc5 {[%emt 0:00:09]} Kc8 {[%emt 0:00:03]} 80. Bd7+ {[%emt 0:00:11]} Kb8 {[%emt 0:00:00]} 81. Kc6 {[%emt 0:00:11]} Ka7 {[%emt 0:00:15]} 82. Bc8 {[%emt 0:00:13]} Kb8 {[%emt 0:00:12]} 83. Bb7 {[%emt 0:00:10]} Ka7 {[%emt 0:00:02]} 84. Nd3 {[%emt 0:00:10]} Kb8 {[%emt 0:00:03]} 85. Ne5 {[%emt 0:00:09]} Ka7 {[%emt 0:00:02]} 86. Bc8 {[%emt 0:00:14]} Kb8 {[%emt 0:00:09]} 87. Ba6 {[%emt 0:00:10]} Ka7 {[%emt 0:00:10]} 88. Kb5 {[%emt 0:00:07]} Ka8 {[%emt 0:00:28]} 89. Kb6 {[%emt 0:00:02]} Kb8 {[%emt 0:00:01]} 90. Nc6+ {[%emt 0:00:01]} Ka8 1-0

[Event "Kupreichik Memorial Open 2018"]
[Site "Minsk"]
[Date "2018.06.23"]
[Round "11"]
[White "Belyuga, Mikhail"]
[Black "Zhukovskij, Viktor"]
[Result "*"]
[ECO "D10"]
[WhiteElo "1908"]
[BlackElo "1973"]
[Annotator "NA"]
[PlyCount "77"]
[EventDate "2018.06.21"]
[EventCountry "BLR"]
[SourceTitle "playchess.com"]
[Source "ChessBase"]
[SourceQuality "1"]
[TimeControl "900+10"]

1. Nf3 {[%emt 0:00:00]} d5 {[%emt 0:00:02]} 2. d4 {[%emt 0:00:00]} Nf6 {[%emt 0:00:02]} 3. c4 {[%emt 0:00:00]} c6 {[%emt 0:00:02]} 4. cxd5 {[%emt 0:00:01]} cxd5 {[%emt 0:00:02]} 5. Bf4 {[%emt 0:00:03]} Nc6 {[%emt 0:00:01]} 6. Nc3 {[%emt 0:00:08]} a6 {[%emt 0:00:02]} 7. e3 {[%emt 0:00:25]} Bf5 {[%emt 0:00:02]} 8. Rc1 {[%emt 0:00:30]} Rc8 {[%emt 0:00:02]} 9. Be2 {[%emt 0:02:20]} e6 {[%emt 0:00:03]} 10. Qa4 {[%emt 0:01:05]} Bd6 {[%emt 0:00:12]} 11. Ne5 {[%emt 0:05:42]} O-O {[%emt 0:00:08]} 12. Bxa6 {[%emt 0:02:51]} Nb4 {[%emt 0:06:36]} 13. Bxb7 {[%emt 0:00:48]} Rb8 {[%emt 0:01:46]} 14. Nc6 {[%emt 0:01:56]} Nxc6 {[%emt 0:02:05]} 15. Bxd6 {[%emt 0:00:41]} Qxd6 {[%emt 0:00:02]} 16. Qxc6 {[%emt 0:00:43]} Qb4 {[%emt 0:00:17]} 17. Ba6 {[%emt 0:00:22]} Rb6 {[%emt 0:00:14]} 18. Qc5 {[%emt 0:00:06]} Qxb2 {[%emt 0:00:17]} 19. Na4 {[%emt 0:00:14]} Qb4+ {[%emt 0:01:14]} 20. Qxb4 {[%emt 0:00:01]} Rxb4 {[%emt 0:00:01]} 21. Nc5 {[%emt 0:00:02]} Ne4 {[%emt 0:01:32]} 22. O-O {[%emt 0:00:23]} Ra8 {[%emt 0:00:01]} 23. Bb7 {[%emt 0:00:12]} Rb8 {[%emt 0:00:29]} 24. Nxe4 {[%emt 0:00:11]} Bxe4 {[%emt 0:00:02]} 25. Bc6 {[%emt 0:00:05]} Rb2 {[%emt 0:00:26]} 26. a4 {[%emt 0:00:09]} Ra2 {[%emt 0:00:01]} 27. Bb5 {[%emt 0:00:03]} Bc2 {[%emt 0:00:09]} 28. Ra1 Rb2 {[%emt 0:00:12]} 29. Rfc1 {[%emt 0:00:28]} Kf8 {[%emt 0:00:06]} 30. h3 {[%emt 0:00:02]} Ra8 {[%emt 0:00:05]} 31. Bc6 {[%emt 0:00:23]} Ra6 {[%emt 0:00:02]} 32. Bb5 {[%emt 0:00:01]} Ra5 {[%emt 0:00:01]} 33. Bc6 {[%emt 0:00:18]} Ke7 {[%emt 0:00:03]} 34. Ra3 {[%emt 0:00:02]} Bb3 {[%emt 0:01:49]} 35. Bb5 {[%emt 0:00:22]} Bc2 {[%emt 0:00:02]} 36. Rc3 {[%emt 0:00:10]} Bxa4 {[%emt 0:00:08]} 37. Rc7+ {[%emt 0:00:05]} Kf6 {[%emt 0:00:01]} 38. Bxa4 {[%emt 0:00:13]} Rxa4 {[%emt 0:00:02]} 39. R1c2 {[%emt 0:00:11]} *

[Event "Kupreichik Memorial Open 2018"]
[Site "Minsk"]
[Date "2018.06.23"]
[Round "11"]
[White "Talma, Sergei"]
[Black "Mialik, Uladzislau"]
[Result "1-0"]
[ECO "B06"]
[WhiteElo "1858"]
[BlackElo "1768"]
[Annotator "NA"]
[PlyCount "135"]
[EventDate "2018.06.21"]
[EventCountry "BLR"]
[SourceTitle "playchess.com"]
[Source "ChessBase"]
[SourceQuality "1"]
[TimeControl "900+10"]

1. d4 {[%emt 0:00:00]} g6 {[%emt 0:00:07]} 2. e4 {[%emt 0:00:01]} Bg7 {[%emt 0:00:03]} 3. Nc3 {[%emt 0:00:01]} d6 {[%emt 0:00:02]} 4. Bg5 {[%emt 0:00:03]} Nf6 {[%emt 0:00:03]} 5. e5 {[%emt 0:00:01]} Nfd7 {[%emt 0:00:29]} 6. exd6 {[%emt 0:00:04]} cxd6 {[%emt 0:00:01]} 7. Qd2 {[%emt 0:00:00]} Nc6 {[%emt 0:01:38]} 8. Nf3 {[%emt 0:00:12]} Qa5 {[%emt 0:00:53]} 9. O-O-O {[%emt 0:01:06]} Nf6 {[%emt 0:02:39]} 10. d5 {[%emt 0:01:55]} Nb4 {[%emt 0:00:56]} 11. a3 {[%emt 0:00:10]} Na6 {[%emt 0:00:11]} 12. Re1 {[%emt 0:01:02]} Nc7 {[%emt 0:01:43]} 13. Bc4 {[%emt 0:00:43]} Bd7 {[%emt 0:03:01]} 14. Nd4 {[%emt 0:01:29]} Rc8 {[%emt 0:01:34]} 15. Nb3 {[%emt 0:00:21]} Ne4 {[%emt 0:01:41]} 16. Nxe4 {[%emt 0:01:32]} Qxd2+ {[%emt 0:00:01]} 17. Nbxd2 {[%emt 0:00:28]} Kf8 {[%emt 0:00:10]} 18. Nc3 {[%emt 0:00:31]} f6 {[%emt 0:00:12]} 19. Bf4 {[%emt 0:00:07]} Kf7 {[%emt 0:00:02]} 20. Bb3 {[%emt 0:00:45]} h6 {[%emt 0:00:30]} 21. h4 {[%emt 0:00:03]} b6 {[%emt 0:00:13]} 22. Nc4 {[%emt 0:00:35]} Bf8 {[%emt 0:00:56]} 23. f3 {[%emt 0:00:08]} Na6 {[%emt 0:00:23]} 24. Be3 {[%emt 0:00:47]} Bg7 {[%emt 0:00:18]} 25. Re2 {[%emt 0:00:07]} f5 {[%emt 0:00:15]} 26. Rhe1 {[%emt 0:00:15]} Bf6 {[%emt 0:00:26]} 27. Bf4 {[%emt 0:00:14]} b5 {[%emt 0:00:32]} 28. Na5 {[%emt 0:00:37]} Nc5 {[%emt 0:00:12]} 29. Nc6 {[%emt 0:00:18]} Nxb3+ {[%emt 0:00:15]} 30. cxb3 {[%emt 0:00:04]} Bxc6 {[%emt 0:00:12]} 31. dxc6 {[%emt 0:00:02]} Rxc6 {[%emt 0:00:03]} 32. Kb1 {[%emt 0:00:19]} g5 {[%emt 0:00:28]} 33. hxg5 {[%emt 0:00:12]} hxg5 {[%emt 0:00:01]} 34. Bd2 {[%emt 0:00:12]} a6 {[%emt 0:00:17]} 35. Nd5 {[%emt 0:00:05]} e5 {[%emt 0:00:14]} 36. Nb4 {[%emt 0:00:28]} Rcc8 {[%emt 0:00:17]} 37. Nxa6 {[%emt 0:00:02]} d5 {[%emt 0:00:10]} 38. Nb4 {[%emt 0:00:16]} d4 {[%emt 0:00:10]} 39. Nd3 {[%emt 0:00:36]} Rhe8 {[%emt 0:00:11]} 40. Nxe5+ {[%emt 0:00:09]} Kg7 {[%emt 0:00:01]} 41. f4 {[%emt 0:00:15]} g4 {[%emt 0:00:12]} 42. g3 {[%emt 0:00:10]} Re7 {[%emt 0:00:17]} 43. Bb4 {[%emt 0:00:16]} Rec7 {[%emt 0:00:06]} 44. Bd6 {[%emt 0:00:45]} Rb7 {[%emt 0:00:12]} 45. Nd3 {[%emt 0:00:02]} Rh8 {[%emt 0:00:10]} 46. Be5 {[%emt 0:00:18]} Rh3 {[%emt 0:00:04]} 47. Bxf6+ {[%emt 0:00:09]} Kxf6 {[%emt 0:00:01]} 48. Re6+ {[%emt 0:00:12]} Kf7 {[%emt 0:00:06]} 49. Rd6 {[%emt 0:00:26]} Rxg3 {[%emt 0:00:10]} 50. Ne5+ {[%emt 0:00:08]} Kg7 {[%emt 0:00:18]} 51. Rg6+ {[%emt 0:00:27]} Kf8 {[%emt 0:00:07]} 52. Rf6+ {[%emt 0:00:24]} Kg7 {[%emt 0:00:11]} 53. Rg6+ {[%emt 0:00:12]} Kh8 {[%emt 0:00:09]} 54. Rh1+ {[%emt 0:00:34]} Rh3 {[%emt 0:00:14]} 55. Rg1 {[%emt 0:01:12]} Rxb3 {[%emt 0:00:09]} 56. Rg5 {[%emt 0:00:20]} Rg7 {[%emt 0:00:21]} 57. Rxf5 {[%emt 0:00:11]} g3 {[%emt 0:00:10]} 58. Nf7+ {[%emt 0:00:50]} Kg8 {[%emt 0:00:11]} 59. Ng5 {[%emt 0:00:02]} Re3 {[%emt 0:00:11]} 60. Kc2 {[%emt 0:00:19]} d3+ {[%emt 0:00:10]} 61. Kd2 {[%emt 0:00:02]} Rge7 {[%emt 0:00:07]} 62. Re5 {[%emt 0:00:22]} R7xe5 {[%emt 0:00:11]} 63. fxe5 {[%emt 0:00:01]} Rxe5 {[%emt 0:00:08]} 64. Rxg3 {[%emt 0:00:04]} Re2+ {[%emt 0:00:08]} 65. Kc3 {[%emt 0:00:09]} Rc2+ {[%emt 0:00:09]} 66. Kb3 {[%emt 0:00:01]} Rc6 67. Rxd3 Kf8 68. Rd5 1-0

[Event "Kupreichik Memorial Open 2018"]
[Site "Minsk"]
[Date "2018.06.23"]
[Round "11"]
[White "Tyurin, Artem"]
[Black "Maslak, Alexander"]
[Result "1/2-1/2"]
[ECO "E68"]
[WhiteElo "1855"]
[BlackElo "2127"]
[Annotator "NA"]
[PlyCount "25"]
[EventDate "2018.06.21"]
[EventCountry "BLR"]
[SourceTitle "playchess.com"]
[Source "ChessBase"]
[SourceQuality "1"]
[TimeControl "900+10"]

1. Nf3 {[%emt 0:00:00]} g6 {[%emt 0:00:18]} 2. g3 {[%emt 0:00:00]} Bg7 {[%emt 0:00:02]} 3. Bg2 {[%emt 0:00:00]} d6 {[%emt 0:00:05]} 4. O-O {[%emt 0:00:00]} Nf6 {[%emt 0:00:17]} 5. d4 {[%emt 0:00:03]} O-O {[%emt 0:00:03]} 6. c4 {[%emt 0:00:05]} Nbd7 {[%emt 0:00:12]} 7. Nc3 {[%emt 0:00:10]} e5 {[%emt 0:00:02]} 8. e4 {[%emt 0:00:14]} exd4 {[%emt 0:00:36]} 9. Nxd4 {[%emt 0:00:01]} a5 {[%emt 0:00:02]} 10. Qc2 {[%emt 0:00:25]} Nc5 {[%emt 0:00:11]} 11. Rd1 {[%emt 0:00:09]} Re8 {[%emt 0:00:17]} 12. Be3 {[%emt 0:00:26]} c6 {[%emt 0:02:35]} 13. h3 {[%emt 0:02:31]} 1/2-1/2